Workbook

Sheet Bienvenue
B1: tata
B2: Récapitulatif des comptes de l'année | H2: 2021/2022
B4: tata | F4: ESPECES | G4: BANQUE
B5: Report de l'exercice précédent | F5: 250 | G5: 1200
B6: Disponible actuellement
B7: tata
B8: tata
B9: tata
B13: tata
B14: tata
B15: tata
B16: tata
B17: tata
B18: tata
B19: tata
B20: tata
B21: tata
B22: tata
B23: tata
B24: tata

Sheet RecapAnnuel
C2: Récapitulatif de l'année | E2: =OFFSET(Bienvenue!H2,,) -> 2021/2022
D3: SOLDES
C4: MOIS | D4: ESPECES | E4: BANQUE
C5: Colonne1 | D5: Colonne2 | E5: Colonne3
C6: Septembre | D6: =OFFSET(Octobre!F5,,) -> 850 | E6: =OFFSET(Octobre!I5,,) -> 1600
C7: Octobre | D7: =OFFSET(Novembre!F5,,) -> 1600 | E7: =OFFSET(Novembre!I5,,) -> 1900
C8: Novembre | D8: =OFFSET(Decembre!F5,,) -> 2000 | E8: =OFFSET(Decembre!I5,,) -> 2000
C9: Décembre | D9: =OFFSET(Janvier!F5,,) -> 2500 | E9: =OFFSET(Janvier!I5,,) -> 2600
C10: Janvier | D10: =OFFSET(Fevrier!F5,,) -> 2800 | E10: =OFFSET(Fevrier!I5,,) -> 3000
C11: Février | D11: =OFFSET(Mars!F5,,) -> 4000 | E11: =OFFSET(Mars!I5,,) -> 3600
C12: Mars | D12: =OFFSET(Avril!F5,,) -> 5000 | E12: =OFFSET(Avril!I5,,) -> 4000
C13: Avril | D13: =OFFSET(Mai!F5,,) -> 0 | E13: =OFFSET(Mai!I5,,) -> 0
C14: Mai | D14: =OFFSET(Juin!F5,,) -> 0 | E14: =OFFSET(Juin!I5,,) -> 0
C15: Juin | D15: =OFFSET(Juillet!F5,,) -> 0 | E15: =OFFSET(Juillet!I5,,) -> 0
C16: Juillet | D16: =OFFSET(Aout!F5,,) -> 0 | E16: =OFFSET(Aout!I5,,) -> 0
C17: Août | D17: =OFFSET(Treizieme!F5,,) -> 0 | E17: =OFFSET(Treizieme!I5,,) -> 0

Sheet Septembre
B1: COMPTES "Septembre"
B2: DATE | C2: LIBELLE | D2: ESPECES | G2: BANQUE | J2: TOTAL
D3: CREDIT | E3: DEBIT | F3: SOLDE | G3: CREDIT | H3: DEBIT | I3: SOLDE
B4: Colonne1 | C4: Colonne2 | D4: Colonne3 | E4: Colonne4 | F4: Colonne5 | G4: Colonne6 | H4: Colonne7 | I4: Colonne8 | J4: Colonne9
D5: Solde année prédédente | F5: =OFFSET(Bienvenue!F5,,) -> 250 | G5: Solde année prédédente | I5: =OFFSET(Bienvenue!G5,,) -> 1200 | J5: =SUM(Tableau1[[#This Row],[Colonne5]]+Tableau1[[#This Row],[Colonne8]]) -> 1450
B6: 2021-11-02T22:30:22 | F6: =IF($B6<>"",F5+D6-E6,0) -> 250 | I6: =IF($B6<>"",I5+G6-H6,0) -> 1200 | J6: =SUM(Tableau1[[#This Row],[Colonne5]]+Tableau1[[#This Row],[Colonne8]]) -> 1450
B7: 2021-11-02T22:30:22 | D7: 100 | F7: =IF($B7<>"",F6+D7-E7,0) -> 350 | I7: =IF($B7<>"",I6+G7-H7,0) -> 1200 | J7: =SUM(Tableau1[[#This Row],[Colonne5]]+Tableau1[[#This Row],[Colonne8]]) -> 1550
B8: 2021-11-02T22:30:22 | F8: =IF($B8<>"",F7+D8-E8,0) -> 350 | G8: 400 | I8: =IF($B8<>"",I7+G8-H8,0) -> 1600 | J8: =SUM(Tableau1[[#This Row],[Colonne5]]+Tableau1[[#This Row],[Colonne8]]) -> 1950
B9: 2021-11-02T22:30:22 | D9: 500 | F9: =IF($B9<>"",F8+D9-E9,0) -> 850 | I9: =IF($B9<>"",I8+G9-H9,0) -> 1600 | J9: =SUM(Tableau1[[#This Row],[Colonne5]]+Tableau1[[#This Row],[Colonne8]]) -> 2450

Sheet Octobre
B1: COMPTES "Octobre"
B2: DATE | C2: LIBELLE | D2: ESPECES | G2: BANQUE | J2: TOTAL
D3: CREDIT | E3: DEBIT | F3: SOLDE | G3: CREDIT | H3: DEBIT | I3: SOLDE
B4: Colonne1 | C4: Colonne2 | D4: Colonne3 | E4: Colonne4 | F4: Colonne5 | G4: Colonne6 | H4: Colonne7 | I4: Colonne8 | J4: Colonne9
D5: Solde mois Septembre | F5: 850 | G5: Solde mois Septembre | I5: 1600 | J5: =SUM(Tableau13[[#This Row],[Colonne5]]+Tableau13[[#This Row],[Colonne8]]) -> 2450
B6: 2021-10-29 | F6: =IF($B6<>"",F5+D6-E6,0) -> 850 | I6: =IF($B6<>"",I5+G6-H6,0) -> 1600 | J6: =SUM(Tableau13[[#This Row],[Colonne5]]+Tableau13[[#This Row],[Colonne8]]) -> 2450
B7: 2021-10-29 | D7: 500 | F7: =IF($B7<>"",F6+D7-E7,0) -> 1350 | I7: =IF($B7<>"",I6+G7-H7,0) -> 1600 | J7: =SUM(Tableau13[[#This Row],[Colonne5]]+Tableau13[[#This Row],[Colonne8]]) -> 2950
B8: 2021-10-29 | F8: =IF($B8<>"",F7+D8-E8,0) -> 1350 | G8: 500 | I8: =IF($B8<>"",I7+G8-H8,0) -> 2100 | J8: =SUM(Tableau13[[#This Row],[Colonne5]]+Tableau13[[#This Row],[Colonne8]]) -> 3450

Sheet Novembre
B1: COMPTES "Novembre"
B2: DATE | C2: LIBELLE | D2: ESPECES | G2: BANQUE | J2: TOTAL
D3: CREDIT | E3: DEBIT | F3: SOLDE | G3: CREDIT | H3: DEBIT | I3: SOLDE
B4: Colonne1 | C4: Colonne2 | D4: Colonne3 | E4: Colonne4 | F4: Colonne5 | G4: Colonne6 | H4: Colonne7 | I4: Colonne8 | J4: Colonne9
D5: Solde mois Octobre | F5: 1600 | G5: Solde mois Octobre | I5: 1900 | J5: =SUM(Tableau14[[#This Row],[Colonne5]]+Tableau14[[#This Row],[Colonne8]]) -> 3500
B6: 2021-10-29 | F6: =IF($B6<>"",F5+D6-E6,0) -> 1600 | I6: =IF($B6<>"",I5+G6-H6,0) -> 1900 | J6: =SUM(Tableau14[[#This Row],[Colonne5]]+Tableau14[[#This Row],[Colonne8]]) -> 3500
B7: 2021-10-29 | D7: 400 | F7: =IF($B7<>"",F6+D7-E7,0) -> 2000 | I7: =IF($B7<>"",I6+G7-H7,0) -> 1900 | J7: =SUM(Tableau14[[#This Row],[Colonne5]]+Tableau14[[#This Row],[Colonne8]]) -> 3900
B8: 2021-10-29 | F8: =IF($B8<>"",F7+D8-E8,0) -> 2000 | G8: 100 | I8: =IF($B8<>"",I7+G8-H8,0) -> 2000 | J8: =SUM(Tableau14[[#This Row],[Colonne5]]+Tableau14[[#This Row],[Colonne8]]) -> 4000

Sheet Decembre
B1: COMPTES "Décembre"
B2: DATE | C2: LIBELLE | D2: ESPECES | G2: BANQUE | J2: TOTAL
D3: CREDIT | E3: DEBIT | F3: SOLDE | G3: CREDIT | H3: DEBIT | I3: SOLDE
B4: Colonne1 | C4: Colonne2 | D4: Colonne3 | E4: Colonne4 | F4: Colonne5 | G4: Colonne6 | H4: Colonne7 | I4: Colonne8 | J4: Colonne9
D5: Solde mois Novembre | F5: 2000 | G5: Solde mois Novembre | I5: 2000 | J5: =SUM(Tableau15[[#This Row],[Colonne5]]+Tableau15[[#This Row],[Colonne8]]) -> 4000
B6: 2021-10-29 | F6: =IF($B6<>"",F5+D6-E6,0) -> 2000 | I6: =IF($B6<>"",I5+G6-H6,0) -> 2000 | J6: =SUM(Tableau15[[#This Row],[Colonne5]]+Tableau15[[#This Row],[Colonne8]]) -> 4000
B7: 2021-10-29 | D7: 500 | F7: =IF($B7<>"",F6+D7-E7,0) -> 2500 | I7: =IF($B7<>"",I6+G7-H7,0) -> 2000 | J7: =SUM(Tableau15[[#This Row],[Colonne5]]+Tableau15[[#This Row],[Colonne8]]) -> 4500
B8: 2021-10-29 | F8: =IF($B8<>"",F7+D8-E8,0) -> 2500 | G8: 600 | I8: =IF($B8<>"",I7+G8-H8,0) -> 2600 | J8: =SUM(Tableau15[[#This Row],[Colonne5]]+Tableau15[[#This Row],[Colonne8]]) -> 5100

Sheet Janvier
B1: COMPTES "Janvier"
B2: DATE | C2: LIBELLE | D2: ESPECES | G2: BANQUE | J2: TOTAL
D3: CREDIT | E3: DEBIT | F3: SOLDE | G3: CREDIT | H3: DEBIT | I3: SOLDE
B4: Colonne1 | C4: Colonne2 | D4: Colonne3 | E4: Colonne4 | F4: Colonne5 | G4: Colonne6 | H4: Colonne7 | I4: Colonne8 | J4: Colonne9
D5: Solde mois Decembre | F5: 2500 | G5: Solde mois Decembre | I5: 2600 | J5: =SUM(Tableau16[[#This Row],[Colonne5]]+Tableau16[[#This Row],[Colonne8]]) -> 5100
B6: 2021-10-29 | F6: =IF($B6<>"",F5+D6-E6,0) -> 2500 | I6: =IF($B6<>"",I5+G6-H6,0) -> 2600 | J6: =SUM(Tableau16[[#This Row],[Colonne5]]+Tableau16[[#This Row],[Colonne8]]) -> 5100
B7: 2021-10-29 | D7: 300 | F7: =IF($B7<>"",F6+D7-E7,0) -> 2800 | I7: =IF($B7<>"",I6+G7-H7,0) -> 2600 | J7: =SUM(Tableau16[[#This Row],[Colonne5]]+Tableau16[[#This Row],[Colonne8]]) -> 5400
B8: 2021-10-29 | F8: =IF($B8<>"",F7+D8-E8,0) -> 2800 | G8: 400 | I8: =IF($B8<>"",I7+G8-H8,0) -> 3000 | J8: =SUM(Tableau16[[#This Row],[Colonne5]]+Tableau16[[#This Row],[Colonne8]]) -> 5800

Sheet Fevrier
B1: COMPTES "Février"
B2: DATE | C2: LIBELLE | D2: ESPECES | G2: BANQUE | J2: TOTAL
D3: CREDIT | E3: DEBIT | F3: SOLDE | G3: CREDIT | H3: DEBIT | I3: SOLDE
B4: Colonne1 | C4: Colonne2 | D4: Colonne3 | E4: Colonne4 | F4: Colonne5 | G4: Colonne6 | H4: Colonne7 | I4: Colonne8 | J4: Colonne9
D5: Solde mois Janvier | F5: 2800 | G5: Solde mois Janvier | I5: 3000 | J5: =SUM(Tableau17[[#This Row],[Colonne5]]+Tableau17[[#This Row],[Colonne8]]) -> 5800
B6: 2021-10-29 | F6: =IF($B6<>"",F5+D6-E6,0) -> 2800 | I6: =IF($B6<>"",I5+G6-H6,0) -> 3000 | J6: =SUM(Tableau17[[#This Row],[Colonne5]]+Tableau17[[#This Row],[Colonne8]]) -> 5800
B7: 2021-10-29 | D7: 200 | F7: =IF($B7<>"",F6+D7-E7,0) -> 3000 | I7: =IF($B7<>"",I6+G7-H7,0) -> 3000 | J7: =SUM(Tableau17[[#This Row],[Colonne5]]+Tableau17[[#This Row],[Colonne8]]) -> 6000
B8: 2021-10-29 | F8: =IF($B8<>"",F7+D8-E8,0) -> 3000 | G8: 600 | I8: =IF($B8<>"",I7+G8-H8,0) -> 3600 | J8: =SUM(Tableau17[[#This Row],[Colonne5]]+Tableau17[[#This Row],[Colonne8]]) -> 6600
B9: 2021-10-29 | D9: 1000 | F9: =IF($B9<>"",F8+D9-E9,0) -> 4000 | I9: =IF($B9<>"",I8+G9-H9,0) -> 3600 | J9: =SUM(Tableau17[[#This Row],[Colonne5]]+Tableau17[[#This Row],[Colonne8]]) -> 7600

Sheet Mars
B1: COMPTES "Mars"
B2: DATE | C2: LIBELLE | D2: ESPECES | G2: BANQUE | J2: TOTAL
D3: CREDIT | E3: DEBIT | F3: SOLDE | G3: CREDIT | H3: DEBIT | I3: SOLDE
B4: Colonne1 | C4: Colonne2 | D4: Colonne3 | E4: Colonne4 | F4: Colonne5 | G4: Colonne6 | H4: Colonne7 | I4: Colonne8 | J4: Colonne9
D5: Solde mois Février | F5: 4000 | G5: Solde mois Février | I5: 3600 | J5: =SUM(Tableau18[[#This Row],[Colonne5]]+Tableau18[[#This Row],[Colonne8]]) -> 7600
B6: 2021-10-29 | F6: =IF($B6<>"",F5+D6-E6,0) -> 4000 | I6: =IF($B6<>"",I5+G6-H6,0) -> 3600 | J6: =SUM(Tableau18[[#This Row],[Colonne5]]+Tableau18[[#This Row],[Colonne8]]) -> 7600
B7: 2021-10-29 | D7: 900 | F7: =IF($B7<>"",F6+D7-E7,0) -> 4900 | I7: =IF($B7<>"",I6+G7-H7,0) -> 3600 | J7: =SUM(Tableau18[[#This Row],[Colonne5]]+Tableau18[[#This Row],[Colonne8]]) -> 8500
B8: 2021-10-29 | F8: =IF($B8<>"",F7+D8-E8,0) -> 4900 | G8: 400 | I8: =IF($B8<>"",I7+G8-H8,0) -> 4000 | J8: =SUM(Tableau18[[#This Row],[Colonne5]]+Tableau18[[#This Row],[Colonne8]]) -> 8900
B9: 2021-10-29 | D9: 100 | F9: =IF($B9<>"",F8+D9-E9,0) -> 5000 | I9: =IF($B9<>"",I8+G9-H9,0) -> 4000 | J9: =SUM(Tableau18[[#This Row],[Colonne5]]+Tableau18[[#This Row],[Colonne8]]) -> 9000

Sheet Avril
B1: COMPTES "Avril"
B2: DATE | C2: LIBELLE | D2: ESPECES | G2: BANQUE | J2: TOTAL
D3: CREDIT | E3: DEBIT | F3: SOLDE | G3: CREDIT | H3: DEBIT | I3: SOLDE
B4: Colonne1 | C4: Colonne2 | D4: Colonne3 | E4: Colonne4 | F4: Colonne5 | G4: Colonne6 | H4: Colonne7 | I4: Colonne8 | J4: Colonne9
D5: Solde mois Mars | F5: 5000 | G5: Solde mois Mars | I5: 4000 | J5: =SUM(Tableau1813[[#This Row],[Colonne5]]+Tableau1813[[#This Row],[Colonne8]]) -> 9000
B6: 2021-10-29 | F6: =IF($B6<>"",F5+D6-E6,0) -> 5000 | I6: =IF($B6<>"",I5+G6-H6,0) -> 4000 | J6: =SUM(Tableau1813[[#This Row],[Colonne5]]+Tableau1813[[#This Row],[Colonne8]]) -> 9000

Sheet Mai
B1: COMPTES "Mai"
B2: DATE | C2: LIBELLE | D2: ESPECES | G2: BANQUE | J2: TOTAL
D3: CREDIT | E3: DEBIT | F3: SOLDE | G3: CREDIT | H3: DEBIT | I3: SOLDE
B4: Colonne1 | C4: Colonne2 | D4: Colonne3 | E4: Colonne4 | F4: Colonne5 | G4: Colonne6 | H4: Colonne7 | I4: Colonne8 | J4: Colonne9
D5: Solde mois Mai | F5: 0 | G5: Solde mois Mai | I5: 0 | J5: =SUM(Tableau19[[#This Row],[Colonne5]]+Tableau19[[#This Row],[Colonne8]]) -> 0
B6: 2021-10-29 | F6: =IF($B6<>"",F5+D6-E6,0) -> 0 | I6: =IF($B6<>"",I5+G6-H6,0) -> 0 | J6: =SUM(Tableau19[[#This Row],[Colonne5]]+Tableau19[[#This Row],[Colonne8]]) -> 0

Sheet Juin
B1: COMPTES "Juin"
B2: DATE | C2: LIBELLE | D2: ESPECES | G2: BANQUE | J2: TOTAL
D3: CREDIT | E3: DEBIT | F3: SOLDE | G3: CREDIT | H3: DEBIT | I3: SOLDE
B4: Colonne1 | C4: Colonne2 | D4: Colonne3 | E4: Colonne4 | F4: Colonne5 | G4: Colonne6 | H4: Colonne7 | I4: Colonne8 | J4: Colonne9
D5: Solde mois Juin | F5: 0 | G5: Solde mois Juin | I5: 0 | J5: =SUM(Tableau110[[#This Row],[Colonne5]]+Tableau110[[#This Row],[Colonne8]]) -> 0
B6: 2021-10-29 | F6: =IF($B6<>"",F5+D6-E6,0) -> 0 | I6: =IF($B6<>"",I5+G6-H6,0) -> 0 | J6: =SUM(Tableau110[[#This Row],[Colonne5]]+Tableau110[[#This Row],[Colonne8]]) -> 0

Sheet Juillet
B1: COMPTES "Juillet"
B2: DATE | C2: LIBELLE | D2: ESPECES | G2: BANQUE | J2: TOTAL
D3: CREDIT | E3: DEBIT | F3: SOLDE | G3: CREDIT | H3: DEBIT | I3: SOLDE
B4: Colonne1 | C4: Colonne2 | D4: Colonne3 | E4: Colonne4 | F4: Colonne5 | G4: Colonne6 | H4: Colonne7 | I4: Colonne8 | J4: Colonne9
D5: Solde mois Juin | F5: 0 | G5: Solde mois juin | I5: 0 | J5: =SUM(Tableau111[[#This Row],[Colonne5]]+Tableau111[[#This Row],[Colonne8]]) -> 0
B6: 2021-10-29 | F6: =IF($B6<>"",F5+D6-E6,0) -> 0 | I6: =IF($B6<>"",I5+G6-H6,0) -> 0 | J6: =SUM(Tableau111[[#This Row],[Colonne5]]+Tableau111[[#This Row],[Colonne8]]) -> 0

Sheet Aout
B1: COMPTES "Août"
B2: DATE | C2: LIBELLE | D2: ESPECES | G2: BANQUE | J2: TOTAL
D3: CREDIT | E3: DEBIT | F3: SOLDE | G3: CREDIT | H3: DEBIT | I3: SOLDE
B4: Colonne1 | C4: Colonne2 | D4: Colonne3 | E4: Colonne4 | F4: Colonne5 | G4: Colonne6 | H4: Colonne7 | I4: Colonne8 | J4: Colonne9
D5: Solde mois Juillet | F5: 0 | G5: Solde mois Février | I5: 0 | J5: =SUM(Tableau112[[#This Row],[Colonne5]]+Tableau112[[#This Row],[Colonne8]]) -> 0
B6: 2021-10-29 | F6: =IF($B6<>"",F5+D6-E6,0) -> 0 | I6: =IF($B6<>"",I5+G6-H6,0) -> 0 | J6: =SUM(Tableau112[[#This Row],[Colonne5]]+Tableau112[[#This Row],[Colonne8]]) -> 0

Sheet Treizieme
B1: COMPTES "Treizième"
B2: DATE | C2: LIBELLE | D2: ESPECES | G2: BANQUE | J2: TOTAL
D3: CREDIT | E3: DEBIT | F3: SOLDE | G3: CREDIT | H3: DEBIT | I3: SOLDE
B4: Colonne1 | C4: Colonne2 | D4: Colonne3 | E4: Colonne4 | F4: Colonne5 | G4: Colonne6 | H4: Colonne7 | I4: Colonne8 | J4: Colonne9
D5: Solde mois Août | F5: 0 | G5: Solde mois Août | I5: 0 | J5: =SUM(Tableau11214[[#This Row],[Colonne5]]+Tableau11214[[#This Row],[Colonne8]]) -> 0
B6: 2021-10-29 | F6: =IF($B6<>"",F5+D6-E6,0) -> 0 | I6: =IF($B6<>"",I5+G6-H6,0) -> 0 | J6: =SUM(Tableau11214[[#This Row],[Colonne5]]+Tableau11214[[#This Row],[Colonne8]]) -> 0

Sheet Codage
B2: Date | C2: Libellé | D2: Crédit | E2: Débit | F2: Solde | G2: Crédit | H2: Débit | I2: Solde | J2: Total
B3: -3 | D3: -1 | E3: Clic | G3: 3 | H3: 4 | M3: Somme
B4: -5 | D4: -3 | E4: -2 | G4: Clic | H4: 1
B5: -6 | D5: -4 | E5: -3 | G5: -1 | H5: Clic
B7: -2 | D7: Clic | E7: 1 | G7: 3 | H7: 4
B8: -5 | D8: -3 | E8: -2 | G8: Clic | H8: 1
B9: -6 | D9: -4 | E9: -3 | G9: -1 | H9: Clic
B11: -2 | D11: Clic | E11: 1 | G11: 3 | H11: 4
B12: -3 | D12: -1 | E12: Clic | G12: 2
B13: -6 | D13: -4 | E13: -3 | G13: -1 | H13: Clic
B15: -2 | D15: Clic | E15: 1 | G15: 3 | H15: 4
B16: -3 | D16: -1 | E16: Clic | G16: 2 | H16: 3
B17: -5 | D17: -3 | E17: -2 | G17: Clic | H17: 1
